[Event "Titled Tuesday Blitz January 31 Late 2023"]
[White "Oparin, Grigoriy"]
[Black "Wieczorek, Oskar"]
[WhiteFideId "24125890"]
[BlackFideId "1133950"]
[WhiteElo "2667"]
[BlackElo "2512"]
[Result "1-0"]
[Round "03"]
[TimeControl "180+2"]
[Date "2023.01.31"]
[WhiteClock "0:00:12"]
[BlackClock "0:00:04"]

1. Nc3 {[%clk 0:03:00]}  Nf6 {[%clk 0:02:57]} 2. e4 {[%clk 0:03:00]}  e5 {[%clk 0:02:58]} 3. Nf3 {[%clk 0:02:59]}  Nc6 {[%clk 0:02:57]} 4. h3 {[%clk 0:03:00]}  Bb4 {[%clk 0:02:51]} 5. Bd3 {[%clk 0:03:00]}  d6 {[%clk 0:02:48]} 6. O-O {[%clk 0:02:59]}  a6 {[%clk 0:02:46]} 7. Re1 {[%clk 0:02:59]}  O-O {[%clk 0:02:45]} 8. Bf1 {[%clk 0:02:56]}  Bc5 {[%clk 0:02:44]} 9. d3 {[%clk 0:02:55]}  h6 {[%clk 0:02:44]} 10. g3 {[%clk 0:02:51]}  Nd4 {[%clk 0:02:39]} 11. Nxd4 {[%clk 0:02:49]}  Bxd4 {[%clk 0:02:40]} 12. Bg2 {[%clk 0:02:48]}  c6 {[%clk 0:02:38]} 13. Be3 {[%clk 0:02:46]}  Bxe3 {[%clk 0:02:36]} 14. Rxe3 {[%clk 0:02:44]}  Re8 {[%clk 0:02:28]} 15. d4 {[%clk 0:02:40]}  Qb6 {[%clk 0:02:26]} 16. Rd3 {[%clk 0:02:32]}  d5 {[%clk 0:01:59]} 17. dxe5 {[%clk 0:02:13]}  Nxe4 {[%clk 0:01:53]} 18. Nxe4 {[%clk 0:02:00]}  dxe4 {[%clk 0:01:52]} 19. Rd4 {[%clk 0:01:28]}  Bf5 {[%clk 0:01:32]} 20. g4 {[%clk 0:01:16]}  Bg6 {[%clk 0:01:29]} 21. Bxe4 {[%clk 0:01:16]}  Rxe5 {[%clk 0:01:21]} 22. Bxg6 {[%clk 0:01:13]}  fxg6 {[%clk 0:01:22]} 23. b3 {[%clk 0:01:09]}  Rae8 {[%clk 0:01:21]} 24. Qd3 {[%clk 0:01:08]}  Re2 {[%clk 0:00:59]} 25. Rf1 {[%clk 0:01:07]}  Qc5 {[%clk 0:00:55]} 26. c3 {[%clk 0:00:49]}  Qg5 {[%clk 0:00:46]} 27. a4 {[%clk 0:00:48]}  Kh7 {[%clk 0:00:36]} 28. b4 {[%clk 0:00:42]}  h5 {[%clk 0:00:33]} 29. a5 {[%clk 0:00:42]}  R8e5 {[%clk 0:00:31]} 30. Qg3 {[%clk 0:00:39]}  Re1 {[%clk 0:00:29]} 31. Rxe1 {[%clk 0:00:32]}  Rxe1+ {[%clk 0:00:29]} 32. Kh2 {[%clk 0:00:33]}  Qc1 {[%clk 0:00:28]} 33. Qf3 {[%clk 0:00:30]}  Qg5 {[%clk 0:00:20]} 34. Re4 {[%clk 0:00:20]}  Rxe4 {[%clk 0:00:14]} 35. Qxe4 {[%clk 0:00:21]}  Qf6 {[%clk 0:00:12]} 36. Qe3 {[%clk 0:00:21]}  hxg4 {[%clk 0:00:12]} 37. hxg4 {[%clk 0:00:22]}  Qh4+ {[%clk 0:00:09]} 38. Qh3 {[%clk 0:00:21]}  g5 {[%clk 0:00:09]} 39. Qxh4+ {[%clk 0:00:11]}  gxh4 {[%clk 0:00:10]} 40. f4 {[%clk 0:00:12]}  Kh6 {[%clk 0:00:07]} 41. Kh3 {[%clk 0:00:10]}  g5 {[%clk 0:00:08]} 42. fxg5+ {[%clk 0:00:11]}  Kxg5 {[%clk 0:00:07]} 43. c4 {[%clk 0:00:11]}  c5 {[%clk 0:00:04]} 44. bxc5 {[%clk 0:00:12]} 1-0


[Site "https://www.chess.com"]

[Event "Titled Tuesday Blitz January 31 Late 2023"]
[White "Papasimakopoulos, Alexandros"]
[Black "Melkumyan, Hrant"]
[WhiteFideId "4244125"]
[BlackFideId "13302485"]
[WhiteElo "2401"]
[BlackElo "2645"]
[Result "0-1"]
[Round "03"]
[TimeControl "180+2"]
[Date "2023.01.31"]
[WhiteClock "0:00:17"]
[BlackClock "0:01:08"]

1. d4 {[%clk 0:03:00]}  Nf6 {[%clk 0:02:54]} 2. c4 {[%clk 0:03:01]}  g6 {[%clk 0:02:49]} 3. Nf3 {[%clk 0:02:53]}  Bg7 {[%clk 0:02:46]} 4. g3 {[%clk 0:02:53]}  b6 {[%clk 0:02:45]} 5. Bg2 {[%clk 0:02:53]}  Bb7 {[%clk 0:02:45]} 6. O-O {[%clk 0:02:54]}  O-O {[%clk 0:02:42]} 7. b3 {[%clk 0:02:54]}  a5 {[%clk 0:02:30]} 8. Nc3 {[%clk 0:02:52]}  Ne4 {[%clk 0:02:29]} 9. Bb2 {[%clk 0:02:50]}  Nxc3 {[%clk 0:02:29]} 10. Bxc3 {[%clk 0:02:51]}  Na6 {[%clk 0:02:30]} 11. Qd2 {[%clk 0:02:48]}  d6 {[%clk 0:02:27]} 12. Rfe1 {[%clk 0:02:43]}  Be4 {[%clk 0:02:23]} 13. Bf1 {[%clk 0:02:36]}  Bxf3 {[%clk 0:02:18]} 14. exf3 {[%clk 0:02:36]}  e6 {[%clk 0:02:19]} 15. f4 {[%clk 0:02:29]}  d5 {[%clk 0:02:14]} 16. Rac1 {[%clk 0:02:27]}  c6 {[%clk 0:02:13]} 17. a3 {[%clk 0:02:22]}  Qd7 {[%clk 0:02:11]} 18. b4 {[%clk 0:02:21]}  axb4 {[%clk 0:02:10]} 19. axb4 {[%clk 0:02:22]}  dxc4 {[%clk 0:02:10]} 20. Bxc4 {[%clk 0:02:20]}  Nc7 {[%clk 0:02:10]} 21. Qd3 {[%clk 0:02:12]}  b5 {[%clk 0:02:06]} 22. Bb3 {[%clk 0:02:11]}  Nd5 {[%clk 0:02:05]} 23. Bd2 {[%clk 0:02:06]}  Ra3 {[%clk 0:01:59]} 24. h4 {[%clk 0:02:01]}  h5 {[%clk 0:01:53]} 25. Rc2 {[%clk 0:01:50]}  Rd8 {[%clk 0:01:51]} 26. Rec1 {[%clk 0:01:43]}  Ne7 {[%clk 0:01:49]} 27. Be3 {[%clk 0:01:37]}  Bxd4 {[%clk 0:01:42]} 28. Rd1 {[%clk 0:01:29]}  Nf5 {[%clk 0:01:42]} 29. Rcd2 {[%clk 0:01:04]}  Bxe3 {[%clk 0:01:38]} 30. Qxe3 {[%clk 0:00:48]}  Nxe3 {[%clk 0:01:32]} 31. Rxd7 {[%clk 0:00:48]}  Rxd7 {[%clk 0:01:32]} 32. Rxd7 {[%clk 0:00:49]}  Rxb3 {[%clk 0:01:31]} 33. fxe3 {[%clk 0:00:49]}  Rxe3 {[%clk 0:01:31]} 34. Kf2 {[%clk 0:00:50]}  Rc3 {[%clk 0:01:30]} 35. Rc7 {[%clk 0:00:50]}  Kg7 {[%clk 0:01:30]} 36. Kg2 {[%clk 0:00:50]}  Kf6 {[%clk 0:01:29]} 37. Kf2 {[%clk 0:00:51]}  Rc4 {[%clk 0:01:29]} 38. Kf3 {[%clk 0:00:50]}  e5 {[%clk 0:01:14]} 39. fxe5+ {[%clk 0:00:50]}  Ke6 {[%clk 0:01:15]} 40. Ke3 {[%clk 0:00:49]}  Rxb4 {[%clk 0:01:12]} 41. Rxc6+ {[%clk 0:00:49]}  Kxe5 {[%clk 0:01:13]} 42. Rc7 {[%clk 0:00:46]}  Ke6 {[%clk 0:01:13]} 43. Rb7 {[%clk 0:00:45]}  Rg4 {[%clk 0:01:12]} 44. Rb6+ {[%clk 0:00:38]}  Ke7 {[%clk 0:01:11]} 45. Rb7+ {[%clk 0:00:30]}  Kf6 {[%clk 0:01:10]} 46. Rb6+ {[%clk 0:00:29]}  Kg7 {[%clk 0:01:10]} 47. Kf3 {[%clk 0:00:16]}  b4 {[%clk 0:01:09]} 48. Kf2 {[%clk 0:00:16]}  f5 {[%clk 0:01:09]} 49. Kf3 {[%clk 0:00:16]}  Kf7 {[%clk 0:01:09]} 50. Kf2 {[%clk 0:00:15]}  Ke7 {[%clk 0:01:09]} 51. Kf3 {[%clk 0:00:16]}  Kd7 {[%clk 0:01:09]} 52. Rxb4 {[%clk 0:00:17]}  Rxb4 {[%clk 0:01:08]} 0-1


[Site "https://www.chess.com"]

[Event "Titled Tuesday Blitz January 31 Late 2023"]
[White "Jones, Gawain C B"]
[Black "Tan, Zhongyi"]
[WhiteFideId "409561"]
[BlackFideId "8603642"]
[WhiteElo "2618"]
[BlackElo "2517"]
[Result "0-1"]
[Round "03"]
[TimeControl "180+2"]
[Date "2023.01.31"]
[WhiteClock "0:00:26"]
[BlackClock "0:00:24"]

1. Nf3 {[%clk 0:03:00]}  d5 {[%clk 0:02:59]} 2. c4 {[%clk 0:03:00]}  d4 {[%clk 0:02:59]} 3. b4 {[%clk 0:03:00]}  c5 {[%clk 0:02:59]} 4. g3 {[%clk 0:03:00]}  cxb4 {[%clk 0:02:57]} 5. a3 {[%clk 0:03:00]}  e6 {[%clk 0:02:52]} 6. axb4 {[%clk 0:02:50]}  Bxb4 {[%clk 0:02:51]} 7. Qa4+ {[%clk 0:02:50]}  Nc6 {[%clk 0:02:51]} 8. Ne5 {[%clk 0:02:50]}  Ne7 {[%clk 0:02:45]} 9. Bg2 {[%clk 0:02:50]}  a5 {[%clk 0:02:27]} 10. Ba3 {[%clk 0:02:43]}  Bxa3 {[%clk 0:02:18]} 11. Nxa3 {[%clk 0:02:44]}  O-O {[%clk 0:02:17]} 12. Nxc6 {[%clk 0:02:43]}  bxc6 {[%clk 0:02:14]} 13. c5 {[%clk 0:02:29]}  Ba6 {[%clk 0:02:04]} 14. Nc4 {[%clk 0:02:17]}  Bb5 {[%clk 0:02:01]} 15. Qc2 {[%clk 0:02:11]}  Nd5 {[%clk 0:01:47]} 16. Nd6 {[%clk 0:01:49]}  d3 {[%clk 0:01:47]} 17. Qb3 {[%clk 0:01:27]}  a4 {[%clk 0:01:43]} 18. Qa3 {[%clk 0:01:24]}  dxe2 {[%clk 0:01:42]} 19. d3 {[%clk 0:01:11]}  Qf6 {[%clk 0:01:02]} 20. Kxe2 {[%clk 0:01:09]}  Nc3+ {[%clk 0:01:00]} 21. Kf1 {[%clk 0:01:07]}  Bxd3+ {[%clk 0:00:59]} 22. Kg1 {[%clk 0:01:05]}  Ne2+ {[%clk 0:00:58]} 23. Kf1 {[%clk 0:01:05]}  Nxg3+ {[%clk 0:00:55]} 24. Kg1 {[%clk 0:01:03]}  Ne2+ {[%clk 0:00:42]} 25. Kf1 {[%clk 0:01:04]}  Nf4+ {[%clk 0:00:42]} 26. Ke1 {[%clk 0:01:00]}  Nxg2+ {[%clk 0:00:40]} 27. Kd2 {[%clk 0:01:00]}  Nf4 {[%clk 0:00:34]} 28. Rhg1 {[%clk 0:00:56]}  Bg6 {[%clk 0:00:33]} 29. Rg3 {[%clk 0:00:34]}  Qd4+ {[%clk 0:00:32]} 30. Ke1 {[%clk 0:00:35]}  Nd3+ {[%clk 0:00:30]} 31. Kd2 {[%clk 0:00:28]}  Nxc5+ {[%clk 0:00:27]} 32. Ke2 {[%clk 0:00:27]}  Qxd6 {[%clk 0:00:26]} 33. Qc3 {[%clk 0:00:26]}  Ne4 {[%clk 0:00:24]} 0-1


[Site "https://www.chess.com"]

[Event "Titled Tuesday Blitz January 31 Late 2023"]
[White "Kanakaris, Georgios"]
[Black "Moroni, Luca Jr"]
[WhiteFideId "4209460"]
[BlackFideId "865834"]
[WhiteElo "2391"]
[BlackElo "2535"]
[Result "0-1"]
[Round "03"]
[TimeControl "180+2"]
[Date "2023.01.31"]
[WhiteClock "0:00:06"]
[BlackClock "0:00:08"]

1. d4 {[%clk 0:03:00]}  d6 {[%clk 0:02:59]} 2. Nf3 {[%clk 0:03:01]}  g6 {[%clk 0:02:59]} 3. g3 {[%clk 0:03:01]}  Bg7 {[%clk 0:02:59]} 4. Bg2 {[%clk 0:03:01]}  Bd7 {[%clk 0:02:59]} 5. O-O {[%clk 0:03:01]}  Qc8 {[%clk 0:02:59]} 6. Re1 {[%clk 0:03:00]}  Nc6 {[%clk 0:02:59]} 7. e4 {[%clk 0:02:58]}  Bh3 {[%clk 0:02:59]} 8. Bh1 {[%clk 0:02:57]}  h5 {[%clk 0:02:59]} 9. d5 {[%clk 0:02:55]}  Ne5 {[%clk 0:02:58]} 10. Nxe5 {[%clk 0:02:52]}  Bxe5 {[%clk 0:02:59]} 11. f4 {[%clk 0:02:53]}  Bg7 {[%clk 0:02:58]} 12. e5 {[%clk 0:02:52]}  h4 {[%clk 0:02:57]} 13. Nc3 {[%clk 0:02:38]}  hxg3 {[%clk 0:02:54]} 14. hxg3 {[%clk 0:02:39]}  Bg4 {[%clk 0:02:33]} 15. Qd3 {[%clk 0:02:30]}  Bf5 {[%clk 0:02:23]} 16. Be4 {[%clk 0:02:27]}  Nh6 {[%clk 0:01:56]} 17. Qb5+ {[%clk 0:01:42]}  Kf8 {[%clk 0:01:54]} 18. Bg2 {[%clk 0:01:24]}  Bh3 {[%clk 0:01:45]} 19. e6 {[%clk 0:01:15]}  Bxg2 {[%clk 0:01:22]} 20. Kxg2 {[%clk 0:01:16]}  Nf5 {[%clk 0:01:22]} 21. Bd2 {[%clk 0:00:59]}  fxe6 {[%clk 0:01:18]} 22. dxe6 {[%clk 0:00:51]}  c5 {[%clk 0:01:16]} 23. Nd5 {[%clk 0:00:31]}  Qc6 {[%clk 0:01:14]} 24. Qd3 {[%clk 0:00:27]}  Bxb2 {[%clk 0:01:05]} 25. Rab1 {[%clk 0:00:26]}  c4 {[%clk 0:00:56]} 26. Qe4 {[%clk 0:00:17]}  Bg7 {[%clk 0:00:54]} 27. Rh1 {[%clk 0:00:13]}  c3 {[%clk 0:00:51]} 28. g4 {[%clk 0:00:08]}  Nh4+ {[%clk 0:00:35]} 29. Rxh4 {[%clk 0:00:07]}  Rxh4 {[%clk 0:00:36]} 30. Kg3 {[%clk 0:00:04]}  cxd2 {[%clk 0:00:18]} 31. Qxg6 {[%clk 0:00:03]}  Qe8 {[%clk 0:00:08]} 32. Qf5+ {[%clk 0:00:03]}  Kg8 {[%clk 0:00:08]} 33. Kxh4 {[%clk 0:00:04]}  Rc8 {[%clk 0:00:05]} 34. Rh1 {[%clk 0:00:04]}  Rc5 {[%clk 0:00:04]} 35. c4 {[%clk 0:00:01]}  b5 {[%clk 0:00:03]} 36. Kg3 {[%clk 0:00:02]}  bxc4 {[%clk 0:00:02]} 37. Qh7+ {[%clk 0:00:02]}  Kf8 {[%clk 0:00:03]} 38. Qf5+ {[%clk 0:00:03]}  Kg8 {[%clk 0:00:04]} 39. Qh7+ {[%clk 0:00:03]}  Kf8 {[%clk 0:00:04]} 40. Qf5+ {[%clk 0:00:03]}  Bf6 {[%clk 0:00:04]} 41. Rh8+ {[%clk 0:00:02]}  Kg7 {[%clk 0:00:05]} 42. Rxe8 {[%clk 0:00:02]}  d1=Q {[%clk 0:00:05]} 43. Qh5 {[%clk 0:00:03]}  Qe1+ {[%clk 0:00:04]} 44. Kg2 {[%clk 0:00:04]}  Qe2+ {[%clk 0:00:04]} 45. Kg3 {[%clk 0:00:04]}  Qd3+ {[%clk 0:00:05]} 46. Kg2 {[%clk 0:00:05]}  Qe4+ {[%clk 0:00:05]} 47. Kg3 {[%clk 0:00:05]}  Bh4+ {[%clk 0:00:05]} 48. Kxh4 {[%clk 0:00:05]}  Qh1+ {[%clk 0:00:05]} 49. Kg5 {[%clk 0:00:05]}  Qxh5+ {[%clk 0:00:05]} 50. gxh5 {[%clk 0:00:06]}  Rxd5+ {[%clk 0:00:06]} 51. f5 {[%clk 0:00:07]}  c3 {[%clk 0:00:04]} 52. Rxe7+ {[%clk 0:00:07]}  Kf8 {[%clk 0:00:05]} 53. Rc7 {[%clk 0:00:06]}  Rc5 {[%clk 0:00:05]} 54. Rxc5 {[%clk 0:00:04]}  dxc5 {[%clk 0:00:06]} 55. h6 {[%clk 0:00:04]}  c2 {[%clk 0:00:06]} 56. Kf6 {[%clk 0:00:05]}  c1=Q {[%clk 0:00:06]} 57. e7+ {[%clk 0:00:05]}  Ke8 {[%clk 0:00:06]} 58. Kg6 {[%clk 0:00:05]}  Qg1+ {[%clk 0:00:06]} 59. Kf6 {[%clk 0:00:05]}  Qd4+ {[%clk 0:00:07]} 60. Ke6 {[%clk 0:00:05]}  Qe4+ {[%clk 0:00:07]} 61. Kf6 {[%clk 0:00:05]}  Qxe7+ {[%clk 0:00:08]} 62. Kg6 {[%clk 0:00:06]}  Qf7+ {[%clk 0:00:08]} 0-1


[Site "https://www.chess.com"]

[Event "Titled Tuesday Blitz January 31 Late 2023"]
[White "Urazayev, Arystanbek"]
[Black "Chor, Kevin"]
[WhiteFideId "13709810"]
[BlackFideId "2090740"]
[WhiteElo "2460"]
[BlackElo "1944"]
[Result "1-0"]
[Round "03"]
[TimeControl "180+2"]
[Date "2023.01.31"]
[WhiteClock "0:01:32"]
[BlackClock "0:00:12"]

1. e4 {[%clk 0:03:00]}  c5 {[%clk 0:02:59]} 2. Nf3 {[%clk 0:03:01]}  g6 {[%clk 0:02:58]} 3. c3 {[%clk 0:03:00]}  Bg7 {[%clk 0:02:58]} 4. d4 {[%clk 0:03:01]}  cxd4 {[%clk 0:02:59]} 5. cxd4 {[%clk 0:03:02]}  d5 {[%clk 0:02:59]} 6. exd5 {[%clk 0:03:02]}  Nf6 {[%clk 0:02:59]} 7. Nc3 {[%clk 0:03:03]}  O-O {[%clk 0:02:57]} 8. Bc4 {[%clk 0:03:03]}  Nbd7 {[%clk 0:02:57]} 9. O-O {[%clk 0:03:04]}  Nb6 {[%clk 0:02:57]} 10. Bb3 {[%clk 0:03:05]}  Nfxd5 {[%clk 0:02:56]} 11. Re1 {[%clk 0:03:05]}  e6 {[%clk 0:02:50]} 12. Bg5 {[%clk 0:03:01]}  Qc7 {[%clk 0:02:24]} 13. Rc1 {[%clk 0:02:49]}  Nxc3 {[%clk 0:02:18]} 14. Rxc3 {[%clk 0:02:47]}  Qd6 {[%clk 0:02:13]} 15. Qd2 {[%clk 0:02:38]}  Bd7 {[%clk 0:02:07]} 16. Bf4 {[%clk 0:02:36]}  Qb4 {[%clk 0:02:02]} 17. a3 {[%clk 0:02:31]}  Qb5 {[%clk 0:01:59]} 18. Ne5 {[%clk 0:02:15]}  Rac8 {[%clk 0:01:36]} 19. a4 {[%clk 0:02:15]}  Nxa4 {[%clk 0:01:25]} 20. Bxa4 {[%clk 0:02:15]}  Qxa4 {[%clk 0:01:26]} 21. Ra3 {[%clk 0:02:16]}  Qb5 {[%clk 0:01:22]} 22. Ra5 {[%clk 0:02:16]}  Bxe5 {[%clk 0:00:51]} 23. Bxe5 {[%clk 0:01:58]}  Qc6 {[%clk 0:00:28]} 24. Bf6 {[%clk 0:01:56]}  e5 {[%clk 0:00:24]} 25. dxe5 {[%clk 0:01:49]}  Rfe8 {[%clk 0:00:24]} 26. Raa1 {[%clk 0:01:39]}  Re6 {[%clk 0:00:22]} 27. Rac1 {[%clk 0:01:37]}  Qb6 {[%clk 0:00:11]} 28. Rxc8+ {[%clk 0:01:33]}  Bxc8 {[%clk 0:00:12]} 29. Qh6 {[%clk 0:01:32]} 1-0


[Site "https://www.chess.com"]

[Event "Titled Tuesday Blitz January 31 Late 2023"]
[White "Grigoriants, Sergey"]
[Black "Crevatin, Leo"]
[WhiteFideId "4130804"]
[BlackFideId "1726307"]
[WhiteElo "2562"]
[BlackElo "2292"]
[Result "1/2-1/2"]
[Round "03"]
[TimeControl "180+2"]
[Date "2023.01.31"]
[WhiteClock "0:02:16"]
[BlackClock "0:01:21"]

1. d4 {[%clk 0:02:54]}  Nf6 {[%clk 0:02:59]} 2. c4 {[%clk 0:02:53]}  e6 {[%clk 0:02:59]} 3. Nc3 {[%clk 0:02:52]}  Bb4 {[%clk 0:02:58]} 4. e3 {[%clk 0:02:51]}  O-O {[%clk 0:02:57]} 5. Bd3 {[%clk 0:02:50]}  d5 {[%clk 0:02:57]} 6. Ne2 {[%clk 0:02:50]}  dxc4 {[%clk 0:02:55]} 7. Bxc4 {[%clk 0:02:50]}  c5 {[%clk 0:02:55]} 8. a3 {[%clk 0:02:49]}  Bxc3+ {[%clk 0:02:53]} 9. bxc3 {[%clk 0:02:49]}  Qc7 {[%clk 0:02:53]} 10. Bd3 {[%clk 0:02:48]}  Nc6 {[%clk 0:02:43]} 11. e4 {[%clk 0:02:44]}  cxd4 {[%clk 0:02:31]} 12. cxd4 {[%clk 0:02:44]}  Nxd4 {[%clk 0:02:21]} 13. O-O {[%clk 0:02:31]}  Nxe2+ {[%clk 0:02:16]} 14. Qxe2 {[%clk 0:02:31]}  Bd7 {[%clk 0:02:13]} 15. Bb2 {[%clk 0:02:30]}  Bc6 {[%clk 0:02:10]} 16. Bxf6 {[%clk 0:02:24]}  gxf6 {[%clk 0:02:10]} 17. Qg4+ {[%clk 0:02:25]}  Kh8 {[%clk 0:02:10]} 18. Qh4 {[%clk 0:02:26]}  Qe5 {[%clk 0:02:09]} 19. f4 {[%clk 0:02:14]}  Qd4+ {[%clk 0:02:05]} 20. Kh1 {[%clk 0:02:15]}  Rg8 {[%clk 0:01:50]} 21. Rad1 {[%clk 0:02:14]}  Bxe4 {[%clk 0:01:18]} 22. Bxe4 {[%clk 0:02:14]}  Qxe4 {[%clk 0:01:19]} 23. Qxf6+ {[%clk 0:02:14]}  Rg7 {[%clk 0:01:19]} 24. Rd8+ {[%clk 0:02:14]}  Rxd8 {[%clk 0:01:19]} 25. Qxd8+ {[%clk 0:02:15]}  Rg8 {[%clk 0:01:20]} 26. Qf6+ {[%clk 0:02:15]}  Rg7 {[%clk 0:01:20]} 27. Qd8+ {[%clk 0:02:15]}  Rg8 {[%clk 0:01:21]} 28. Qf6+ {[%clk 0:02:16]}  Rg7 {[%clk 0:01:21]} 29. Qd8+ {[%clk 0:02:16]} 1/2-1/2


[Site "https://www.chess.com"]

[Event "Titled Tuesday Blitz January 31 Late 2023"]
[White "Djokic, Mihailo"]
[Black "Van Foreest, Lucas"]
[WhiteFideId "976440"]
[BlackFideId "1039792"]
[WhiteElo "2192"]
[BlackElo "2556"]
[Result "0-1"]
[Round "03"]
[TimeControl "180+2"]
[Date "2023.01.31"]
[WhiteClock "0:00:17"]
[BlackClock "0:01:57"]

1. e4 {[%clk 0:03:00]}  b5 {[%clk 0:02:59]} 2. Bxb5 {[%clk 0:02:54]}  Bb7 {[%clk 0:02:59]} 3. Nc3 {[%clk 0:02:46]}  f5 {[%clk 0:03:00]} 4. exf5 {[%clk 0:02:39]}  Bxg2 {[%clk 0:03:00]} 5. Qh5+ {[%clk 0:02:39]}  g6 {[%clk 0:03:01]} 6. fxg6 {[%clk 0:02:39]}  Bg7 {[%clk 0:03:02]} 7. gxh7+ {[%clk 0:02:38]}  Kf8 {[%clk 0:03:02]} 8. hxg8=Q+ {[%clk 0:02:18]}  Kxg8 {[%clk 0:03:03]} 9. Qg5 {[%clk 0:01:25]}  Bxh1 {[%clk 0:03:03]} 10. Nd5 {[%clk 0:01:01]}  Nc6 {[%clk 0:02:05]} 11. Bc4 {[%clk 0:00:49]}  e6 {[%clk 0:02:02]} 12. Qxd8+ {[%clk 0:00:39]}  Rxd8 {[%clk 0:02:02]} 13. Nxc7 {[%clk 0:00:37]}  Nd4 {[%clk 0:01:57]} 14. Bd3 {[%clk 0:00:20]}  Rxh2 {[%clk 0:01:57]} 15. c3 {[%clk 0:00:19]}  Nf3+ {[%clk 0:01:57]} 16. Kf1 {[%clk 0:00:16]}  Bg2+ {[%clk 0:01:57]} 17. Ke2 {[%clk 0:00:17]}  Nxg1+ {[%clk 0:01:57]} 0-1


[Site "https://www.chess.com"]

[Event "Titled Tuesday Blitz January 31 Late 2023"]
[White "Iskusnyh, Sergei"]
[Black "Boruchovsky, Avital"]
[WhiteFideId "4120027"]
[BlackFideId "2800055"]
[WhiteElo "2440"]
[BlackElo "2539"]
[Result "0-1"]
[Round "03"]
[TimeControl "180+2"]
[Date "2023.01.31"]
[WhiteClock "0:00:07"]
[BlackClock "0:00:20"]

1. d4 {[%clk 0:02:58]}  d6 {[%clk 0:02:58]} 2. Nf3 {[%clk 0:02:57]}  Nf6 {[%clk 0:02:58]} 3. c4 {[%clk 0:02:55]}  h6 {[%clk 0:02:57]} 4. g3 {[%clk 0:02:48]}  Bf5 {[%clk 0:02:54]} 5. Bg2 {[%clk 0:02:46]}  c6 {[%clk 0:02:55]} 6. O-O {[%clk 0:02:41]}  Nbd7 {[%clk 0:02:55]} 7. Nc3 {[%clk 0:02:40]}  e5 {[%clk 0:02:54]} 8. Re1 {[%clk 0:01:59]}  Be7 {[%clk 0:02:52]} 9. e4 {[%clk 0:01:57]}  Bh7 {[%clk 0:02:52]} 10. b3 {[%clk 0:01:50]}  O-O {[%clk 0:02:50]} 11. Bb2 {[%clk 0:01:49]}  Ne8 {[%clk 0:02:42]} 12. Qd2 {[%clk 0:01:44]}  Nc7 {[%clk 0:02:19]} 13. Rad1 {[%clk 0:01:41]}  Ne6 {[%clk 0:02:11]} 14. dxe5 {[%clk 0:01:22]}  Nxe5 {[%clk 0:02:11]} 15. Nd4 {[%clk 0:01:22]}  Nxd4 {[%clk 0:01:51]} 16. Qxd4 {[%clk 0:01:23]}  f6 {[%clk 0:01:46]} 17. f4 {[%clk 0:01:13]}  Nf7 {[%clk 0:01:46]} 18. Kh1 {[%clk 0:01:06]}  Re8 {[%clk 0:01:46]} 19. Bh3 {[%clk 0:00:46]}  Bf8 {[%clk 0:01:45]} 20. c5 {[%clk 0:00:41]}  Qc7 {[%clk 0:01:28]} 21. cxd6 {[%clk 0:00:30]}  Nxd6 {[%clk 0:01:27]} 22. e5 {[%clk 0:00:29]}  fxe5 {[%clk 0:01:23]} 23. fxe5 {[%clk 0:00:28]}  Nf7 {[%clk 0:01:08]} 24. e6 {[%clk 0:00:13]}  Ng5 {[%clk 0:01:08]} 25. Bg2 {[%clk 0:00:09]}  Nxe6 {[%clk 0:00:33]} 26. Qc4 {[%clk 0:00:08]}  Qf7 {[%clk 0:00:33]} 27. Rf1 {[%clk 0:00:07]}  Qe7 {[%clk 0:00:25]} 28. Rde1 {[%clk 0:00:07]}  Qc5 {[%clk 0:00:20]} 0-1


[Site "https://www.chess.com"]

[Event "Titled Tuesday Blitz January 31 Late 2023"]
[White "Migot, Tangi"]
[Black "Srbis, Jurica"]
[WhiteFideId "662445"]
[BlackFideId "14515555"]
[WhiteElo "2373"]
[BlackElo "2433"]
[Result "1-0"]
[Round "03"]
[TimeControl "180+2"]
[Date "2023.01.31"]
[WhiteClock "0:00:44"]
[BlackClock "0:00:05"]

1. d4 {[%clk 0:03:00]}  Nf6 {[%clk 0:02:59]} 2. Nd2 {[%clk 0:03:01]}  d5 {[%clk 0:02:58]} 3. c4 {[%clk 0:02:59]}  c6 {[%clk 0:02:58]} 4. Ngf3 {[%clk 0:02:59]}  e6 {[%clk 0:02:56]} 5. e3 {[%clk 0:02:59]}  Nbd7 {[%clk 0:02:54]} 6. Bd3 {[%clk 0:02:57]}  Bd6 {[%clk 0:02:52]} 7. O-O {[%clk 0:02:57]}  O-O {[%clk 0:02:52]} 8. e4 {[%clk 0:02:52]}  dxe4 {[%clk 0:02:45]} 9. Nxe4 {[%clk 0:02:53]}  Nxe4 {[%clk 0:02:42]} 10. Bxe4 {[%clk 0:02:54]}  Nf6 {[%clk 0:02:40]} 11. Bc2 {[%clk 0:02:55]}  c5 {[%clk 0:02:40]} 12. Bg5 {[%clk 0:02:54]}  h6 {[%clk 0:02:39]} 13. Bh4 {[%clk 0:02:51]}  cxd4 {[%clk 0:02:27]} 14. Qd3 {[%clk 0:02:50]}  Re8 {[%clk 0:02:08]} 15. Nxd4 {[%clk 0:02:46]}  g5 {[%clk 0:01:16]} 16. Bg3 {[%clk 0:02:42]}  Bxg3 {[%clk 0:01:16]} 17. hxg3 {[%clk 0:02:28]}  e5 {[%clk 0:01:15]} 18. Nb5 {[%clk 0:02:23]}  Qxd3 {[%clk 0:01:04]} 19. Bxd3 {[%clk 0:02:24]}  Rd8 {[%clk 0:01:03]} 20. Rfd1 {[%clk 0:02:24]}  Kf8 {[%clk 0:00:58]} 21. c5 {[%clk 0:02:16]}  Be6 {[%clk 0:00:49]} 22. Nd6 {[%clk 0:02:06]}  b6 {[%clk 0:00:47]} 23. Rac1 {[%clk 0:01:47]}  bxc5 {[%clk 0:00:46]} 24. Nb7 {[%clk 0:01:47]}  Rd4 {[%clk 0:00:31]} 25. Nxc5 {[%clk 0:01:42]}  Bxa2 {[%clk 0:00:24]} 26. Bf5 {[%clk 0:01:20]}  Rxd1+ {[%clk 0:00:20]} 27. Rxd1 {[%clk 0:01:20]}  Re8 {[%clk 0:00:17]} 28. Ra1 {[%clk 0:01:18]}  Be6 {[%clk 0:00:16]} 29. Bxe6 {[%clk 0:01:16]}  fxe6 {[%clk 0:00:17]} 30. Rxa7 {[%clk 0:01:17]}  Re7 {[%clk 0:00:17]} 31. Ra6 {[%clk 0:01:10]}  Kf7 {[%clk 0:00:17]} 32. b4 {[%clk 0:01:11]}  Nd5 {[%clk 0:00:17]} 33. b5 {[%clk 0:01:10]}  Rc7 {[%clk 0:00:16]} 34. Nxe6 {[%clk 0:01:06]}  Rc1+ {[%clk 0:00:17]} 35. Kh2 {[%clk 0:01:06]}  Nf6 {[%clk 0:00:17]} 36. f3 {[%clk 0:01:05]}  e4 {[%clk 0:00:15]} 37. Nd4 {[%clk 0:01:03]}  e3 {[%clk 0:00:14]} 38. Ra2 {[%clk 0:01:02]}  Rd1 {[%clk 0:00:14]} 39. Nf5 {[%clk 0:00:59]}  Nd5 {[%clk 0:00:11]} 40. Re2 {[%clk 0:00:55]}  Rd3 {[%clk 0:00:10]} 41. b6 {[%clk 0:00:54]}  Kg6 {[%clk 0:00:08]} 42. b7 {[%clk 0:00:53]}  Rb3 {[%clk 0:00:08]} 43. Nxe3 {[%clk 0:00:51]}  Nxe3 {[%clk 0:00:08]} 44. Rxe3 {[%clk 0:00:51]}  Rxb7 {[%clk 0:00:09]} 45. Re6+ {[%clk 0:00:50]}  Kg7 {[%clk 0:00:10]} 46. Kh3 {[%clk 0:00:50]}  Rf7 {[%clk 0:00:10]} 47. Kg4 {[%clk 0:00:50]}  Rb7 {[%clk 0:00:05]} 48. Kh5 {[%clk 0:00:49]}  Rb2 {[%clk 0:00:05]} 49. Rg6+ {[%clk 0:00:45]}  Kf7 {[%clk 0:00:05]} 50. Rxh6 {[%clk 0:00:45]}  Rxg2 {[%clk 0:00:05]} 51. Kg4 {[%clk 0:00:44]}  Kg7 {[%clk 0:00:04]} 52. Ra6 {[%clk 0:00:44]}  Kf7 {[%clk 0:00:05]} 53. Ra5 {[%clk 0:00:44]}  Kf6 {[%clk 0:00:05]} 54. Rf5+ {[%clk 0:00:45]}  Ke6 {[%clk 0:00:04]} 55. Rxg5 {[%clk 0:00:45]}  Kf6 {[%clk 0:00:05]} 56. f4 {[%clk 0:00:44]} 1-0


[Site "https://www.chess.com"]